Cogmind - Beta 17.1 @@@ ROGUE MODE // 2026.08.31 @ 13:34:09 Player: 4R-ZE3 Result: Self-destructed Performance ------------- Evolutions (0) 0 Regions Visited (3) 600 Robots Destroyed (25) 125 Value Destroyed (427) 427 Prototype IDs (14) 280 Alien Tech Used (0) 0 Bonus (5950) 5950 TOTAL SCORE: 7382 Bonus ------- Prayed to X0-1V1 5000 Major X0-1V1 Interference 150 Registered with UFD 300 Met Optimus in HQ 500 Cogmind --------- Core Integrity 183/250 Matter 300/300 Energy 265/265 System Corruption 0% Temperature Cool (0) Movement Rolling (110) Ox1 Location -9/Scraptown Parts ------- > --- POWER (1) -------- Improved Ion Engine > --- PROPULSION (2) --- Compact Wheel Armored Wheel > --- UTILITY (2) ------ High-capacity Storage Unit X0-1V1's Piety Tracker > --- WEAPON (2) ------- Improved Light Cannon CPS Tube > --- INVENTORY (20) --- Light Treads Armored Wheel Subdweller Monowheel Subdweller Monowheel Improved Cryofiber Web Experimental Sensor Array Hardened Light Armor Plating A0-MCA's Component Scanner Particle Gun Heavy Laser Improved Light Cannon Improved Light Cannon Improved Light Cannon Grenade Launcher Rocket Launcher CPS Tube (2) Mace Mace DRS Beacon (Ready) Peak State ------------ > --- POWER ------------ Improved Ion Engine > --- PROPULSION ------- Compact Wheel Armored Wheel > --- UTILITY ---------- High-capacity Storage Unit X0-1V1's Piety Tracker > --- WEAPON ----------- Improved Light Cannon CPS Tube > --- INVENTORY -------- Light Treads Armored Wheel Subdweller Monowheel Subdweller Monowheel Improved Cryofiber Web Experimental Sensor Array Hardened Light Armor Plating A0-MCA's Component Scanner Particle Gun Heavy Laser Improved Light Cannon Improved Light Cannon Improved Light Cannon Grenade Launcher Rocket Launcher CPS Tube Mace Mace DRS Beacon [Rating: 30] Favorites ----------- Power Ion Engine Engine Ion Engine Propulsion Light Treads Treads Light Treads Wheel Compact Wheel Flight Unit Improved Flight Unit Utility High-capacity Storage Unit Device X0-1V1's Piety Tracker Storage High-capacity Storage Unit Weapon Improved Light Cannon Energy Gun Small Laser Ballistic Gun Light Assault Rifle Ballistic Cannon Improved Light Cannon Launcher Grenade Launcher Special Weapon CPS Tube Build | -11 -10 -10 -9 ------- Run | Yrd Mat Sub Scr Slots Evolved . | . . . . Power . | . . . . Propulsion . | . . . . Utility . | . . . . Weapon . | . . . . Parts Attached 24 | 5 10 2 7 Power 3 | . 1 1 1 Engine 3 | . 1 1 1 Core . | . . . . Reactor . | . . . . Propulsion 9 | 2 3 . 4 Treads 5 | 2 2 . 1 Leg . | . . . . Wheel 3 | . . . 3 Hover . | . . . . Flight 1 | . 1 . . Utility 5 | 1 3 1 . Device 2 | . 1 1 . Storage 3 | 1 2 . . Processor . | . . . . Hackware . | . . . . Protection . | . . . . Artifact . | . . . . Weapon 7 | 2 3 . 2 Energy Gun 2 | 1 . . 1 Energy Cannon . | . . . . Ballistic Gun 1 | 1 . . . Ballistic Cannon 2 | . 2 . . Launcher 1 | . 1 . . Special Weapon 1 | . . . 1 Impact Weapon . | . . . . Slashing Weapon . | . . . . Piercing Weapon . | . . . . Special Melee Weapon . | . . . . Unidentified Prototypes 2 | . 1 1 . Parts Lost 3 | . 2 . 1 Power . | . . . . Propulsion 3 | . 2 . 1 Utility . | . . . . Weapon . | . . . . Highest Loss Streak 1 | . 1 . 1 To Critical Strikes . | . . . . Average Backups 15 | 1 10 19 18 Power . | . 1 . . Propulsion 3 | . . 5 5 Utility 1 | . . 1 2 Weapon 8 | . 7 12 8 Tool/Special . | . . . . Unused Backups 40 | . 6 4 30 Power 2 | . 1 . 1 Propulsion 7 | . 1 . 6 Utility 8 | . . . 8 Weapon 22 | . 4 4 14 Tool/Special 1 | . . . 1 Average Slot Usage (%) 99 | . 97 100 100 Engine 13 | . 12 14 14 Treads 23 | . 27 28 21 Wheel 4 | . . . 6 Device 10 | . 2 14 14 Storage 16 | . 24 14 14 Energy Gun 3 | . 13 . . Ballistic Gun 3 | . 13 . . Ballistic Cannon 19 | . 1 27 26 Peak Build Rating 30 | 5 13 24 30 Average Rating 20 | 4 7 23 26 On Entrance 10 | . 5 13 24 Avg Prop Armor Cover (%) . | . . . . Naked Turns . | . . . . Heaviest Build 57 | 7 57 54 56 Greatest Support 43 | 40 40 40 43 Greatest Overweight (x) 1 | . 1 1 1 Average Overweight (x) . | . . 1 1 Largest Inventory Capacity 20 | 8 20 20 20 Average Capacity 19 | 7 18 20 20 Most Carried 20 | 3 20 20 20 Average Carried 16 | 1 10 19 19 Final Capacity 20 | 8 20 20 20 Final Carried 20 | 3 20 20 19 Class Distribution -------------------- 99% | Mutant Dominant Class ---------------- Mutant | -10/Materials Mutant | -10/Subcaves Mutant | -9/Scraptown Resources | -11 -10 -10 -9 ----------- Run | Yrd Mat Sub Scr Matter Collected 632 | 230 196 75 131 Remotely . | . . . . Salvage Created 567 | . 538 29 . Parts 46 | . 39 7 . Haulers Intercepted 2 | . 2 . . Recyclers Shooed . | . . . . Parts Field Recycled . | . . . . Retrieved Matter . | . . . . Parts Self-Destructed 3 | . . 3 . Prevented . | . . . . Parts Restored . | . . . . Kills | -11 -10 -10 -9 ------- Run | Yrd Mat Sub Scr Combat Hostiles Destroyed 21 | . 16 5 . Guns 9 | . 9 . . AOE 12 | . 7 5 . Classes Destroyed 5 | . 5 . . Hauler 2 | . 2 . . Recycler 1 | . 1 . . Watcher 1 | . 1 . . Swarmer 14 | . 9 5 . Grunt 7 | . 7 . . Best Kill Streak 9 | . 9 5 . Combat Bots Only 9 | . 9 5 . Max Kills in Single Turn 5 | . 5 3 . Gunslinging . | . . . . Exploded 5 | . 5 3 . Melee . | . . . . Uniques/NPCs Destroyed . | . . . . Combat | -11 -10 -10 -9 -------- Run | Yrd Mat Sub Scr Hostile Shots Fired 84 | . 75 8 1 Missed 23 | . 20 3 . Hits 61 | . 55 5 1 Melee 1 | . . . 1 Projectile 60 | . 55 5 . Critical Strikes 1 | . . . 1 Damage Taken 777 | . 610 92 75 Core 67 | . 67 . . Absorbed by Shields . | . . . . Core Remaining (%) 100 | 100 . . . Volleys Fired 58 | . 55 3 . Largest 2 | . 2 1 . Hottest 60 | . 60 30 . Shots Fired 111 | . 108 3 . Gun 105 | . 105 . . Cannon . | . . . . Launcher 6 | . 3 3 . Special . | . . . . Kinetic 52 | . 52 . . Thermal 53 | . 53 . . Explosive 6 | . 3 3 . Electromagnetic . | . . . . Robot Hit Streak 12 | . 12 10 . Robot Miss Streak 5 | . 5 1 . Penetration Max . | . . . . Secondary Targets 1 | . 1 . . Max Gunslinging Chain 1 | . 1 . . Shots Hit Robots 67 | . 65 2 . Core Hits 41 | . 36 5 . Critical Kills . | . . . . Critical Parts Destroyed . | . . . . Critical Strikes . | . . . . Melee Attacks . | . . . . Impact . | . . . . Slashing . | . . . . Piercing . | . . . . Sneak Attacks . | . . . . Combat Hostiles . | . . . . Follow-up Attacks . | . . . . Damage Inflicted 1281 | . 977 304 . Guns 646 | . 646 . . Cannons . | . . . . Explosions 621 | . 317 304 . Melee . | . . . . Ramming 14 | . 14 . . Kinetic 229 | . 229 . . Thermal 417 | . 417 . . Explosive 621 | . 317 304 . Electromagnetic . | . . . . Impact . | . . . . Slashing . | . . . . Piercing . | . . . . Highest Corruption 2 | . 2 2 . Average Corruption 2 | . 2 2 . Corruption Purged . | . . . . Corruption Blocked . | . . . . Effects 17 | . 12 5 . Message Errors 1 | . . 1 . Matter Fused 5 | . 3 2 . Heat Flow Errors 1 | . 1 . . Energy Discharges 3 | . 1 2 . Parts Fused 1 | . 1 . . Data Loss (minor) 5 | . 5 . . Misfires 1 | . 1 . . Overload Shots . | . . . . Overflow Damage 50 | . 37 13 . Projectiles . | . . . . Explosions 50 | . 37 13 . Melee . | . . . . Knockbacks . | . . . . Impact . | . . . . Kinetic . | . . . . Secondary . | . . . . Self-Inflicted Damage 79 | . 79 . . Shots 2 | . 2 . . Rammed 1 | . 1 . . Targets Rammed 1 | . 1 . . Kicked . | . . . . Crushed . | . . . . Highest Temperature 251 | . 220 251 . Average Temperature 34 | . 27 141 . Received Heat Transfer 147 | . 147 . . Siege Activations . | . . . . Martial Activations . | . . . . Shielding Activations . | . . . . Robots Disrupted . | . . . . Combat Hostiles . | . . . . Robots Corrupted . | . . . . Combat Hostiles . | . . . . Parts Fried . | . . . . Impact Corruptions . | . . . . Robots Melted . | . . . . Combat Hostiles . | . . . . Parts Melted . | . . . . Heat Transferred 925 | . 925 . . Parts Sabotaged . | . . . . Parts Stolen . | . . . . Parts Stripped . | . . . . Power Chain Reactions . | . . . . Alert | -11 -10 -10 -9 ------- Run | Yrd Mat Sub Scr Maximum Alert Level 1 | . 1 . . Low Security (%) 96 | 100 96 . . Level 1 3 | . 3 . . Level 2 . | . . . . Level 3 . | . . . . Level 4 . | . . . . Level 5 . | . . . . High Security . | . . . . Max Security . | . . . . Peak Influence 226 | . 226 . . Initial . | . . . . Average 53 | . 55 . . Influence Increases 604 | . 504 100 . Destroy 0b10 Robot/C 420 | . 320 100 . Destroy 0b10 Robot/NC 20 | . 20 . . Destroy Leader 66 | . 66 . . Successful Hack 12 | . 12 . . Select Force Hacks 60 | . 60 . . Disable Machine 15 | . 15 . . Destroy Structure 11 | . 11 . . Influence Decreases 604 | . 504 24 76 Entered New Map 76 | . . . 76 Time Decay 518 | . 494 24 . Lost Part 10 | . 10 . . Squads Dispatched 3 | . 3 . . Investigation 3 | . 3 . . Extermination . | . . . . Reinforcement . | . . . . Assault . | . . . . Garrison . | . . . . Intercept . | . . . . Searches Triggered . | . . . . Construction Impeded . | . . . . Haulers Reinforced . | . . . . Active Scanning Responses . | . . . . Cargo Convoy Interrupts . | . . . . Stealth | -11 -10 -10 -9 --------- Run | Yrd Mat Sub Scr Distress Signals 2 | . 2 . . Communications Jammed . | . . . . Distress Signals . | . . . . Times Spotted 37 | . 30 5 2 Peak Tracking Total 11 | . 11 5 1 Tactical Retreats . | . . . . Traps | -11 -10 -10 -9 ------- Run | Yrd Mat Sub Scr Traps Triggered 3 | . 2 1 . Indirectly . | . . . . Trap Hack Attempts . | . . . . Triggered . | . . . . Disarmed . | . . . . Reprogrammed . | . . . . Reused . | . . . . Traps Extracted . | . . . . Installed . | . . . . Triggered . | . . . . Machines | -11 -10 -10 -9 ---------- Run | Yrd Mat Sub Scr Machines Disabled 1 | . 1 . . Max in Single Turn 1 | . 1 . . Machines Repaired . | . . . . Machines Dismantled . | . . . . Machines Sabotaged . | . . . . Overloaded Fab Kills . | . . . . Hacking | -11 -10 -10 -9 --------- Run | Yrd Mat Sub Scr Machines Accessed 10 | . 7 . 3 Terminals 5 | . 5 . . Fabricators . | . . . . Repair Stations . | . . . . Recycling Units 2 | . 2 . . Scanalyzers . | . . . . Garrison Access . | . . . . Total Hacks 20 | . 13 . 7 Successful 14 | . 7 . 7 Failed 6 | . 6 . . Catastrophic 1 | . 1 . . Database Lockouts . | . . . . Manual 14 | . 14 . . Terminals 10 | . 10 . . Fabricators . | . . . . Repair Stations . | . . . . Recycling Units 3 | . 3 . . Scanalyzers . | . . . . Garrison Access . | . . . . Terminal Hacks 11 | . 4 . 7 Record 6 | . . . 6 Robot Analysis 2 | . 2 . . Recycling Unit Index 1 | . 1 . . Zone Layout 1 | . 1 . . Proto ID Catalog 1 | . . . 1 Fabricator Hacks . | . . . . Repair Station Hacks . | . . . . Recycling Unit Hacks . | . . . . Scanalyzer . | . . . . Garrison Access Hacks . | . . . . Unauthorized Hacks 3 | . 3 . . Terminals 1 | . 1 . . Botnet 1 | . 1 . . Fabricators . | . . . . Repair Stations . | . . . . Recycling Units 2 | . 2 . . Tunnel 2 | . 2 . . Scanalyzers . | . . . . Garrison Access . | . . . . Data Cores Recovered . | . . . . Used . | . . . . Hacking Detections 4 | . 4 . . Full Trace Events . | . . . . Feedback Events . | . . . . Feedback Blocked . | . . . . Robot Schematics Acquired . | . . . . Robots Built . | . . . . Authchips . | . . . . Time . | . . . . Total Robot Build Rating . | . . . . Part Schematics Acquired . | . . . . Parts Built . | . . . . Authchips . | . . . . Time . | . . . . Total Part Build Rating . | . . . . Part Studies Acquired . | . . . . Parts Repaired . | . . . . Time . | . . . . Parts Recycled . | . . . . Recycled Matter . | . . . . Retrieved Matter . | . . . . Retrieved Components . | . . . . Parts Scanalyzed . | . . . . Part Schematics Acquired . | . . . . Parts Damaged . | . . . . Bothacking | -11 -10 -10 -9 ------------ Run | Yrd Mat Sub Scr Used RIF Installer . | . . . . Robots Hacked . | . . . . Non-combat . | . . . . Combat . | . . . . Robot Hacks Applied . | . . . . Relay Couplers Released . | . . . . Fabnet Peak Effective % . | . . . . Robots Rewired . | . . . . Allies Hacked . | . . . . Hacks Repelled . | . . . . Allies | -11 -10 -10 -9 -------- Run | Yrd Mat Sub Scr Total Allies 1 | . . . 1 Largest Group 1 | . . . 1 Highest-Rated Group 41 | . . . 41 Highest-Rated Ally 41 | . . . 41 Total Orders 4 | . . . 4 STAY 2 | . . . 2 FOLLOW 2 | . . . 2 Ally Attacks 1 | . . . 1 Total Damage 23 | . . . 23 Kills . | . . . . Allies Corrupted . | . . . . Allies Melted 2 | . . . 2 X0-1V1 Amusement Gains 83 | . 13 . 70 Average Entertainment 12 | . 13 5 73 Good Acts 1 | . . 1 . Bad Acts 4 | . . 4 . Intel | -11 -10 -10 -9 ------- Run | Yrd Mat Sub Scr Active Infowar (turns) . | . . . . Robot Analysis Total 2 | . 2 . . Derelict Logs Recovered 3 | . . . 3 Drone Launches . | . . . . Drone Recoveries . | . . . . Exploration | -11 -10 -10 -9 ------------- Run | Yrd Mat Sub Scr Turns Passed 6602 | 77 1870 454 4201 Spaces Moved 2816 | 45 701 181 1889 Core 4 | 4 . . . Treads 2250 | 41 701 181 1327 Legs . | . . . . Wheels 562 | . . . 562 Hover . | . . . . Flight . | . . . . Fastest Speed 50 | 50 160 240 110 Average Speed 210 | 150 228 240 202 Slowest Speed 240 | 160 240 240 240 Overloaded Moves . | . . . . Propulsion Burnouts . | . . . . Robots Hopped . | . . . . Potential Cave-ins . | . . . . Cave-ins Triggered . | . . . . Exploration Rate (%) 49 | 3 92 18 83 Regions Visited 3 Branch Regions 2 Pre-discovered Areas 2 | . 2 . . Known Exits Taken . | . . . . Unknown Exits Taken 3 | 1 1 1 . Scrap Searched 8 | . . 3 5 Spaces Dug . | . . . . Terrain Destroyed 20 | . 10 10 . Melee . | . . . . Projectile . | . . . . AOE 20 | . 10 10 . Terrain Rammed . | . . . . Walls Destroyed . | . . . . Machines Disabled . | . . . . Actions | -11 -10 -10 -9 --------- Run | Yrd Mat Sub Scr Total 3391 | 52 871 197 2271 Wait 385 | . 66 . 319 Move 2813 | 44 700 180 1889 Hop . | . . . . Pick Up 57 | 3 26 5 23 Fast Attach 11 | 5 4 . 2 Attach 6 | . 4 . 2 Detach 1 | . 1 . . Swap 12 | . 4 4 4 Drop 42 | . 10 5 27 Fire 58 | . 55 3 . Melee . | . . . . Ram . | . . . . Kick . | . . . . Crush 1 | . 1 . . Escape Stasis . | . . . . Rewire 5 | . . . 5 Trap . | . . . . Miscellaneous . | . . . . Route ------- -11/Scrapyard -10/Materials (discovered 6 exits: [*Mat x3] / [*Min x2] / [*Sub]) -10/Subcaves -9/Scraptown (discovered 1 exit: [*Fac]) History --------- Turn | Location | Event 14 | -11/Scrapyard | Discovered new exit (range 16) 78 | -11/Scrapyard | Entered Materials 319 | -10/Materials | Build established: Mutant 319 | -10/Materials | Discovered new exit (range 16) 329 | -10/Materials | Destroyed 9 combat bots 478 | -10/Materials | Discovered new exit (range 13) 1050 | -10/Materials | Discovered new exit (range 15) 1494 | -10/Materials | Discovered new exit (range 6) 1779 | -10/Materials | Discovered new exit (range 12) 1866 | -10/Materials | Discovered new exit (range 11) 1941 | -10/Materials | Prayed at D.C.S.S. Altar Unit 1948 | -10/Materials | Entered Subcaves 1949 | -10/Subcaves | Approached by a straggling Scientist 2326 | -10/Subcaves | X0-1V1 sent hostile S-10 Pest (x5) 2402 | -10/Subcaves | Entered Scraptown 2402 | -9/Scraptown | System corruption cleaned by C-Scrubber 2551 | -9/Scraptown | Visited Scrapoid Research Area 2611 | -9/Scraptown | Scanned Subdweller tech in exchange for log data 2618 | -9/Scraptown | Learned Research security intel 2623 | -9/Scraptown | Learned Research terminal intel 2748 | -9/Scraptown | Discovered new exit (range 11) 2878 | -9/Scraptown | Visited The Evicted 2906 | -9/Scraptown | Visited Assassins FH 2974 | -9/Scraptown | Visited TADAMA 3026 | -9/Scraptown | Visited CR-KLE's Repair Center 3499 | -9/Scraptown | Visited UFD Registry 3499 | -9/Scraptown | Registered with UFD as "Shadowguard" 3557 | -9/Scraptown | Visited Science Guys 3638 | -9/Scraptown | Visited Science Testing Area 3672 | -9/Scraptown | Visited Derelict Rescue Squad 3687 | -9/Scraptown | Found DRS Beacon 3803 | -9/Scraptown | Visited Abandonware Association 3829 | -9/Scraptown | Learned abandonware demo "REVENGE.EXE" 3880 | -9/Scraptown | Visited Scrap Suit Storage 3947 | -9/Scraptown | Visited A0-MCA Data Center 3961 | -9/Scraptown | Given a B- rating by A0-MCA 3967 | -9/Scraptown | Found A0-MCA's Component Scanner 4001 | -9/Scraptown | Visited DA-N13 Charitable Foundation 4025 | -9/Scraptown | Found DCF Scrap (28 items) 4176 | -9/Scraptown | Visited Botcube Research 4215 | -9/Scraptown | Visited Infowarlord's Domain 4232 | -9/Scraptown | Found Exp. Sensor Array 4441 | -9/Scraptown | Found Botcube 5633 | -9/Scraptown | Botcube activated 5655 | -9/Scraptown | Botcube completed mutation into treaded form, armed with 2 guns 6193 | -9/Scraptown | Met Optimus 6193 | -9/Scraptown | Accepted into 0bPrime 6577 | -9/Scraptown | Civil war broke out across Scraptown 6603 | -9/Scraptown | Self-destructed Last Messages --------------- 06580_ X0-1V1 is amused. 06581_ Optimus: "No holds barred, if they're hostile, they are an enemy of the people and we must shoot to kill. Collateral damage is to be expected!" 06584_ Attempting to rewire Wyrm Statue. 06584_ Wyrm Statue cannot be rewired. 06585_ Attempting to rewire Wyrm Statue. 06585_ Wyrm Statue cannot be rewired. 06586_ Attempting to rewire Wyrm Statue. 06586_ Wyrm Statue cannot be rewired. 06587_ Attempting to rewire Wyrm Statue. 06587_ Wyrm Statue cannot be rewired. 06591_ Searching scrap... 06591_ Found Tractor Beam. 06591_ Found Lgt. EM Pulse Cannon. 06591_ Found 31 Matter. 06592_ Acquired 15 matter. 06595_ Attempting to rewire Wyrm Statue. 06595_ Wyrm Statue cannot be rewired. Map ----- +----------------------------------------------------+ | #"" " "##" [ "#?# #??#""""" """""???# """"" # | | #"""" "##"![ "#?# #??#""""" """"????# """"" # | | #""""""##""""""#?# #????"""?""""?????# # | | ################?# #?????????"???????# # | | #######??#####???# #?????????????????#########?? | | """""""#?#"""#???# #???????????????????????????? | | " "#?#" "#???# #??????????????????????###### | | " """ "#?# #???# #??????????????????????"""""" | | " """ "#?# ##### #?????????????????????""" """ | | " """ ???# ##????????????##????"""" " | | " """ ???# #???????????? | | " """ ???# ##???###???### ##??#"" "" "" | | " """ "??##### ### ##???"""""?#""" "#?????""""""" | | " """ "??????# #?###????"" ""?#""" "#???????""""" | | """ "####### ######???"" "?#""" "#????????#### | | " """ "##""""" """""#??#" ""##"" "#?########### | | " "##"""%" " "#??#"" ""##"" "#?#"""""""""" | | """""""##" =! "#??#"" ""##" "#?#""!!/![[ | | #######?#""""" """""#??#"" ""##" "#?#""[!]*! | | ##??????###### ######??#" ""##"" "#?#"" | | ############# #####;###"" ""##"" ""###""" """""" | | =%! ] | | *[! [ | | ###"""" """"######"""" """""######""" """##""" "" | | ##?#""" """#????#" /% "#????#"" |"##"" | | ???#""" ""#????#" M*@ "#????#" ""##"" | | ???#"""" "#????#" ! DD "#????#" ""##" | | ???#""""" "#????#"""""%DD "#????#" | | ????"""""""""#????#""""""""""#????#"""""""##"""""" | | ?????#########????############????################ | | | | | | | | | | | | | | | | | | | | | | | | | | | | | | | | | | | | | | | | | +----------------------------------------------------+ Best States ------------- Heat Dissipation 35 Energy Generation 12 Energy Capacity 265 Matter Stores 300 Matter Capacity 300 Sight Range 21 Terrain Scan Density 10 Evasion (%) 40 Recoil Reduction 2 Item Schematics ----------------- None Robot Schematics ------------------ None Fabricated ------------ Nothing Repaired ---------- Nothing Studied --------- None Alien Tech Used ----------------- None Achievements -------------- None Challenges ------------ None Game ------ Seed ChromaticJammingTendrils Manual? 0 Play Time 00:24:06 Cumulative 310.5 hours Start 2026.08.31 @ 13:06:58 End 2026.08.31 @ 13:34:09 Sessions 1 Manual Loads 0 Difficulty Rogue Special Mode None Game No. 295 Rogue 241 Adventurer 54 Explorer 0 Win Type - Total 12 Types 8/0/1/1/0/0/0/1/0/1 Lore% 78 Gallery% 67 Achievement% 61 Wizard Run 0 Options --------- Layout 1 ASCII 0 Keyboard 0 Movement Mouse Keybinds 1 Fullscreen 2 Font 32/Tamsyn Map View 50x35 Zoom Use 0% Tactical HUD 1 Map Filters NONE Filters NONE Steam 1 RUN: e5819a7c-4bf0-4c48-988b-6af32c19576c